Cogmind - Beta 15 *** ADVENTURER MODE // 2025.08.18 @ 12:27:57 Player: Garmand Result: Destroyed by G-47 Trooper with Particle Gun Performance ------------- Evolutions (0) 0 Regions Visited (2) 400 Robots Destroyed (12) 60 Value Destroyed (266) 266 Prototype IDs (0) 0 Alien Tech Used (0) 0 Bonus (0) 0 TOTAL SCORE: 726 Bonus ------- None Cogmind --------- Core Integrity 0/250 Matter 288/300 Energy 160/160 System Corruption 0% Temperature Warm (141) Movement Walking (120) Location -10/Mines Parts ------- > --- POWER (1) -------- Light Nuclear Core > --- PROPULSION (2) --- Aluminum Leg Flexi-carbon Leg > --- UTILITY (2) ------ Small Storage Unit Seismic Detector > --- WEAPON (2) ------- Beamcaster Flak Cannon > --- INVENTORY (8) ---- Light Ion Engine Aluminum Leg Improved Heat Sink Terrain Scanner Field Laser Light Assault Rifle Rocket Launcher Peak State ------------ > --- POWER ------------ Light Nuclear Core > --- PROPULSION ------- Aluminum Leg Flexi-carbon Leg > --- UTILITY ---------- Small Storage Unit Targeting Computer > --- WEAPON ----------- Beamcaster Flak Cannon > --- INVENTORY -------- Aluminum Leg Compact Wheel Compact Wheel Improved Heat Sink Medium Laser Small Laser Field Laser Light Assault Rifle [Rating: 20] Favorites ----------- Power Light Nuclear Core Engine Light Ion Engine Power Core Light Nuclear Core Propulsion Flexi-carbon Leg Leg Flexi-carbon Leg Wheel Compact Wheel Utility Small Storage Unit Device Seismic Detector Storage Small Storage Unit Processor Targeting Computer Weapon Beamcaster Energy Gun Beamcaster Energy Cannon Beam Cannon Ballistic Cannon Flak Cannon Build | -11 -10 -10 ------- Run | Yrd Mat Min Slots Evolved . | . . . Power . | . . . Propulsion . | . . . Utility . | . . . Weapon . | . . . Parts Attached 19 | 6 4 9 Power 4 | 1 1 2 Engine 2 | 1 . 1 Core 2 | . 1 1 Reactor . | . . . Propulsion 6 | 2 . 4 Treads . | . . . Leg 4 | . . 4 Wheel 2 | 2 . . Hover . | . . . Flight . | . . . Utility 3 | 1 1 1 Device 1 | . . 1 Storage 1 | 1 . . Processor 1 | . 1 . Hackware . | . . . Protection . | . . . Artifact . | . . . Weapon 6 | 2 2 2 Energy Gun 3 | 2 . 1 Energy Cannon 2 | . 2 . Ballistic Gun . | . . . Ballistic Cannon 1 | . . 1 Launcher . | . . . Special Weapon . | . . . Impact Weapon . | . . . Slashing Weapon . | . . . Piercing Weapon . | . . . Special Melee Weapon . | . . . Unidentified Prototypes . | . . . Parts Lost 5 | . . 5 Power 2 | . . 2 Propulsion 1 | . . 1 Utility . | . . . Weapon 2 | . . 2 Highest Loss Streak 4 | . . 4 To Critical Strikes . | . . . Average Backups 6 | 2 5 6 Power . | . . . Propulsion 1 | 1 2 2 Utility 1 | . . 1 Weapon 2 | . 2 3 Tool/Special . | . . . Unused Backups 8 | . . 8 Power 1 | . . 1 Propulsion 2 | . . 2 Utility 2 | . . 2 Weapon 3 | . . 3 Tool/Special . | . . . Average Slot Usage (%) 96 | . 96 96 Engine 6 | . 7 6 Core 5 | . 6 5 Leg 20 | . . 24 Wheel 7 | . 28 2 Device 1 | . . 1 Storage 14 | . 14 14 Processor 12 | . 11 12 Energy Gun 15 | . 4 17 Energy Cannon 5 | . 22 1 Ballistic Cannon 6 | . . 8 Peak Build Rating 20 | 6 9 20 Average Rating 13 | 3 7 15 On Entrance 5 | . 6 9 Naked Turns . | . . . Heaviest Build 23 | 11 16 23 Greatest Support 30 | 26 26 30 Greatest Overweight (x) . | . . . Average Overweight (x) . | . . . Largest Inventory Capacity 8 | 8 8 8 Average Capacity 7 | 6 8 8 Most Carried 8 | 5 7 8 Average Carried 6 | 2 5 6 Final Capacity 8 | 8 8 8 Final Carried 7 | 3 7 7 Class Distribution -------------------- 62% | Mutant 37% | Scavenger-Mutant Dominant Class ---------------- Mutant | -10/Materials Mutant | -10/Mines Resources | -11 -10 -10 ----------- Run | Yrd Mat Min Matter Collected 473 | 128 87 258 Remotely . | . . . Salvage Created 491 | . 101 390 Parts 22 | . 3 19 Haulers Intercepted 1 | . 1 . Recyclers Shooed . | . . . Parts Field Recycled . | . . . Retrieved Matter . | . . . Parts Self-Destructed . | . . . Prevented . | . . . Kills | -11 -10 -10 ------- Run | Yrd Mat Min Combat Hostiles Destroyed 16 | . . 16 Guns 15 | . . 15 Cannons 1 | . . 1 Classes Destroyed 6 | . 2 4 Hauler 1 | . 1 . Recycler 1 | . . 1 Watcher 2 | . 2 . Swarmer 3 | . . 3 Grunt 5 | . . 5 Assembled 8 | . . 8 Best Kill Streak 4 | . 3 4 Combat Bots Only 4 | . . 4 Max Kills in Single Turn 1 | . 1 1 Gunslinging . | . . . Exploded . | . . . Melee . | . . . Uniques/NPCs Destroyed . | . . . Combat | -11 -10 -10 -------- Run | Yrd Mat Min Hostile Shots Fired 93 | . . 93 Missed 23 | . . 23 Hits 70 | . . 70 Melee 8 | . . 8 Projectile 62 | . . 62 AOE 13 | . . 13 Damage Taken 1026 | . . 1026 Core 257 | . . 257 Absorbed by Shields . | . . . Ignored by Resistances 292 | . . 292 Core Remaining (%) 100 | 100 . . Volleys Fired 44 | 1 3 40 Largest 2 | 2 2 2 Hottest 125 | 90 120 125 Shots Fired 85 | 2 6 77 Gun 56 | 2 . 54 Cannon 29 | . 6 23 Launcher . | . . . Special . | . . . Kinetic 15 | . . 15 Thermal 70 | 2 6 62 Explosive . | . . . Electromagnetic . | . . . Robot Hit Streak 17 | . 3 17 Robot Miss Streak 2 | . 1 2 Penetration Max . | . . . Secondary Targets 2 | . . 2 Max Gunslinging Chain 1 | . . 1 Shots Hit Robots 61 | . 4 57 Core Hits 44 | . 3 41 Critical Kills . | . . . Critical Parts Destroyed . | . . . Critical Strikes 3 | . . 3 Burn 3 | . . 3 Melee Attacks . | . . . Impact . | . . . Slashing . | . . . Piercing . | . . . Sneak Attacks . | . . . Combat Hostiles . | . . . Follow-up Attacks . | . . . Damage Inflicted 1153 | . 71 1082 Guns 629 | . . 629 Cannons 524 | . 71 453 Explosions . | . . . Melee . | . . . Ramming . | . . . Kinetic 314 | . . 314 Thermal 839 | . 71 768 Explosive . | . . . Electromagnetic . | . . . Impact . | . . . Slashing . | . . . Piercing . | . . . Highest Corruption . | . . . Average Corruption . | . . . Corruption Purged . | . . . Corruption Blocked . | . . . Overload Shots . | . . . Overflow Damage 6 | . . 6 Projectiles 6 | . . 6 Explosions . | . . . Melee . | . . . Knockbacks 9 | . . 9 Impact . | . . . Kinetic 6 | . . 6 Secondary 3 | . . 3 Self-Inflicted Damage . | . . . Shots . | . . . Rammed . | . . . Targets Rammed . | . . . Kicked . | . . . Crushed . | . . . Highest Temperature 339 | 30 80 339 Average Temperature 97 | 17 41 103 Received Heat Transfer 256 | . . 256 Siege Activations . | . . . Martial Activations . | . . . Shielding Activations . | . . . Robots Disrupted . | . . . Combat Hostiles . | . . . Robots Corrupted . | . . . Combat Hostiles . | . . . Parts Fried . | . . . Impact Corruptions . | . . . Robots Melted . | . . . Combat Hostiles . | . . . Parts Melted 1 | . . 1 Heat Transferred 2099 | . 148 1951 Parts Sabotaged . | . . . Parts Stolen . | . . . Parts Stripped . | . . . Power Chain Reactions . | . . . Alert | -11 -10 -10 ------- Run | Yrd Mat Min Maximum Alert Level . | . . . Low Security (%) 100 | 100 100 100 Level 1 . | . . . Level 2 . | . . . Level 3 . | . . . Level 4 . | . . . Level 5 . | . . . High Security . | . . . Max Security . | . . . Peak Influence 75 | . 14 75 Initial . | . . . Average 13 | . 2 17 Influence Increases 247 | . 22 225 Destroy 0b10 Robot/C 160 | . . 160 Destroy 0b10 Robot/NC 20 | . 15 5 Destroy Leader 36 | . 6 30 Successful Hack 1 | . 1 . Lose Combat Pursuer 30 | . . 30 Influence Decreases 247 | . 22 225 Time Decay 227 | . 22 205 Lost Part 20 | . . 20 Squads Dispatched . | . . . Investigation . | . . . Extermination . | . . . Reinforcement . | . . . Assault . | . . . Garrison . | . . . Intercept . | . . . Searches Triggered . | . . . Construction Impeded . | . . . Haulers Reinforced . | . . . Active Scanning Responses . | . . . Cargo Convoy Interrupts . | . . . Stealth | -11 -10 -10 --------- Run | Yrd Mat Min Distress Signals 4 | . 2 2 Communications Jammed . | . . . Distress Signals . | . . . Times Spotted 31 | . 1 30 Peak Tracking Total 9 | . 3 9 Tactical Retreats 4 | . . 4 Traps | -11 -10 -10 ------- Run | Yrd Mat Min Traps Triggered . | . . . Indirectly . | . . . Trap Hack Attempts . | . . . Triggered . | . . . Disarmed . | . . . Reprogrammed . | . . . Reused . | . . . Traps Extracted . | . . . Installed . | . . . Triggered . | . . . Machines | -11 -10 -10 ---------- Run | Yrd Mat Min Machines Disabled . | . . . Max in Single Turn . | . . . Machines Repaired . | . . . Machines Dismantled . | . . . Machines Sabotaged . | . . . Overloaded Fab Kills . | . . . Hacking | -11 -10 -10 --------- Run | Yrd Mat Min Machines Accessed 5 | . 4 1 Terminals 3 | . 3 . Fabricators . | . . . Repair Stations . | . . . Recycling Units 1 | . 1 . Scanalyzers . | . . . Garrison Access . | . . . Total Hacks 15 | . 14 1 Successful 13 | . 12 1 Failed 2 | . 2 . Catastrophic . | . . . Database Lockouts . | . . . Manual . | . . . Terminals 13 | . 13 . Fabricators . | . . . Repair Stations . | . . . Recycling Units 1 | . 1 . Scanalyzers . | . . . Garrison Access . | . . . Terminal Hacks 12 | . 11 1 Record 9 | . 9 . Open Door 1 | . . 1 Emergency Access Points 1 | . 1 . Alert Level 1 | . 1 . Fabricator Hacks . | . . . Repair Station Hacks . | . . . Recycling Unit Hacks 1 | . 1 . Report Inventory 1 | . 1 . Scanalyzer . | . . . Garrison Access Hacks . | . . . Unauthorized Hacks . | . . . Terminals . | . . . Fabricators . | . . . Repair Stations . | . . . Recycling Units . | . . . Scanalyzers . | . . . Garrison Access . | . . . Data Cores Recovered . | . . . Used . | . . . Hacking Detections 3 | . 3 . Full Trace Events . | . . . Feedback Events . | . . . Feedback Blocked . | . . . Robot Schematics Acquired . | . . . Robots Built . | . . . Authchips . | . . . Time . | . . . Total Robot Build Rating . | . . . Part Schematics Acquired . | . . . Parts Built . | . . . Authchips . | . . . Time . | . . . Total Part Build Rating . | . . . Parts Repaired . | . . . Time . | . . . Parts Recycled . | . . . Recycled Matter . | . . . Retrieved Matter . | . . . Retrieved Components . | . . . Parts Scanalyzed . | . . . Part Schematics Acquired . | . . . Parts Damaged . | . . . Bothacking | -11 -10 -10 ------------ Run | Yrd Mat Min Used RIF Installer . | . . . Robots Hacked . | . . . Non-combat . | . . . Combat . | . . . Robot Hacks Applied . | . . . Relay Couplers Released . | . . . Fabnet Peak Effective % . | . . . Robots Rewired . | . . . Allies Hacked . | . . . Hacks Repelled . | . . . Allies | -11 -10 -10 -------- Run | Yrd Mat Min Total Allies . | . . . Largest Group . | . . . Highest-Rated Group . | . . . Highest-Rated Ally . | . . . Total Orders . | . . . Ally Attacks . | . . . Total Damage . | . . . Kills . | . . . Allies Corrupted . | . . . Allies Melted . | . . . Intel | -11 -10 -10 ------- Run | Yrd Mat Min Active Infowar (turns) 72 | . . 72 Seismic 72 | . . 72 Robot Analysis Total . | . . . Derelict Logs Recovered 3 | . . 3 Drone Launches . | . . . Drone Recoveries . | . . . Exploration | -11 -10 -10 ------------- Run | Yrd Mat Min Turns Passed 960 | 53 157 750 Spaces Moved 700 | 37 153 510 Core 1 | 1 . . Treads . | . . . Legs 453 | . . 453 Wheels 246 | 36 153 57 Hover . | . . . Flight . | . . . Fastest Speed 50 | 50 90 90 Average Speed 109 | 91 90 117 Slowest Speed 120 | 100 90 120 Overloaded Moves . | . . . Propulsion Burnouts . | . . . Robots Hopped . | . . . Potential Cave-ins . | . . . Cave-ins Triggered . | . . . Exploration Rate (%) 39 | 4 32 81 Regions Visited 2 Branch Regions 1 Pre-discovered Areas 3 | . . 3 Known Exits Taken . | . . . Unknown Exits Taken 2 | 1 1 . Scrap Searched . | . . . Spaces Dug . | . . . Terrain Destroyed . | . . . Melee . | . . . Projectile . | . . . AOE . | . . . Terrain Rammed . | . . . Walls Destroyed . | . . . Machines Disabled . | . . . Actions | -11 -10 -10 --------- Run | Yrd Mat Min Total 807 | 53 167 587 Wait 8 | . . 8 Move 699 | 37 152 510 Hop . | . . . Pick Up 23 | 9 5 9 Fast Attach 1 | . . 1 Attach 15 | 6 4 5 Detach 4 | . 3 1 Swap 6 | . . 6 Drop 7 | . . 7 Fire 44 | 1 3 40 Melee . | . . . Ram . | . . . Kick . | . . . Crush . | . . . Escape Stasis . | . . . Rewire . | . . . Trap . | . . . Miscellaneous . | . . . Route ------- -11/Scrapyard -10/Materials -10/Mines History --------- Turn | Location | Event 31 | -11/Scrapyard | Discovered new exit (range 15) 54 | -11/Scrapyard | Entered Materials 55 | -10/Materials | Met a group of wandering Federalists 170 | -10/Materials | Discovered new exit (range 11) 211 | -10/Materials | Entered Mines 212 | -10/Mines | Assembled infested the area 213 | -10/Mines | Learned location of Zion (-7) 214 | -10/Mines | Learned location of Mines (-9) 217 | -10/Mines | Assisted by a Guerilla fighting off Assembled 223 | -10/Mines | Met a Derelict who couldn't figure out how to use a Trap Extractor 285 | -10/Mines | Lost 4 parts (1p1n2w) 316 | -10/Mines | Build established: Mutant 354 | -10/Mines | Core integrity fell below 50% 382 | -10/Mines | Joined a pair of Derelicts in attacking an 0b10 outpost 509 | -10/Mines | Core integrity fell below 20% 776 | -10/Mines | Received a Rocket Launcher from a helpful Derelict 910 | -10/Mines | Build established: Scavenger-Mutant 961 | -10/Mines | Destroyed by G-47 Trooper with Particle Gun Last Messages --------------- wall? Leave that to the mining laser wimps, I say!" 00776_ E0-AA2(g): "Would you like a rocket launcher? I know I would if I were you, so I'm going to lend you mine." 00776_ E0-AA2(g) slips back into the shadows. 00776_ Dropped Com. Wheel. 00777_ Dropped Sml. Laser. 00778_ Acquired Rocket Launcher. 00800_ G-34 Mercenary knocked back. 00805_ Heat Sink melted. 00805_ G-34 Mercenary destroyed. 00817_ Acquired Terrain Scanner. 00822_ K-01 Serf collects debris. 00824_ Acquired 12 matter. 00826_ Acquired derelict log, extracted data. World map confirmed: -7/Zion. 00888_ Acquired Seismic Detector. 00889_ Discarded Targeting Computer. 00940_ Acquired 10 matter. Map ----- +----------------------------------------------------+ | ??????????????????????????????????????????? | | ?????????????????????????????????#####????? | | ????????????????????????????????## ##???? | | ??????????????????????????????### ####? | | ????????????????????????????### ## | | ???????????????????????????## | | ??????????????????????????## | | ??????????????????????????# | | ??????????????????????????# ## | | ???????#####??????????????## ######## | | ???##### ##??????????????# #??????## | | ??## ########???????# #???????## | | ??# ##??????# #????????## | | ??# ##### ##?????# #????????## | | ??# ###???#*% #?????# #???????## | | ??## ##?????##= #?????# #???????# | | ???# ##??????## ####### #???????# | | ???# ##???????# #???????## | | ???# #????????# ####### #????????## | | ???# #????????# #?????# #?????????## | | ???# #????????# ####### #??????????## | | ???# #????????# =[ #???????????? | | ???# #????????## % #???????????? | | ???# #?????????# ########????######## | | ???# ###########% ##??????????# | | ???# g @ #??????????# | | ???# % #??????????# """ "" | | ???#############== #??????????# """ "" | | ???????????????# % * #??????????# """ "" | | ???????????????## =%=#??????????# | | ????????????????## =[| #??????????### #### | | ?????????????????## =!##????????????# #?## | | ??????????????????###%##??????????#### ### | | ????????????????????#=#???????????# = | | ????????????????????# #???????????#!##### = | | ????????????????????#[#???????????#?????# | | ????????????????????#%#?????????????????# " | | ????????????????????#[#?????????????????# " | | ????????????????????#%#?????????????????# " | | ???????????????????? *#?????????????????# | | ????????????????????#=#?????????????????## | | ????????????????????#%=??????????????????## | | ????????????????????#==???????????????????? | | ?????????????????????##???????????????????? | | ???????????????????????????????##?????????? | | ????????????????????????????#### ???????? | | ????????????????????????????? = ?????? | | ????????????????###?????????? %! ! =%#### | | ???????????????## #????????????? *%=!!!!|# | | ???????????????# #??######???????????#=% | +----------------------------------------------------+ Best States ------------- Heat Dissipation 25 Energy Generation 14 Energy Capacity 265 Matter Stores 300 Matter Capacity 300 Sight Range 16 Terrain Scan Density 10 Resistance: KI 20 Resistance: TH 20 Resistance: EX 20 Resistance: EM 20 Resistance: I 20 Resistance: S 20 Resistance: P 20 Evasion (%) 55 Targeting Accuracy 5 Offensive Hacking 10 Item Schematics ----------------- None Robot Schematics ------------------ None Fabricated ------------ Nothing Repaired ---------- Nothing Alien Tech Used ----------------- None Achievements -------------- None Challenges ------------ None Game ------ Seed TrackerScanMegatreads Manual? 0 Play Time 00:20:47 Cumulative 12.6 hours Start 2025.08.18 @ 12:08:02 End 2025.08.18 @ 12:27:57 Sessions 1 Manual Loads 0 Difficulty Adventurer Special Mode None Game No. 18 Rogue 12 Adventurer 6 Explorer 0 Win Type - Total 0 Types 0/0/0/0/0/0/0/0/0/0 Lore% 3 Gallery% 17 Achievement% 21 Wizard Run 0 Options --------- Layout 1 ASCII 0 Keyboard 0 Movement Mouse Keybinds 0 Fullscreen 1 Font 48/Smallcaps Map View 50x35 Zoom Use 0% Tactical HUD 1 Map Filters NONE Filters NONE Steam 1 RUN: b8876e11-ab57-4086-ba07-23a79abbdbad